Cogmind - Beta 16.1 @@@ ROGUE MODE // 2026.03.14 @ 08:34:59 Player: osman sinnoks Result: Destroyed by AR-ODT(R) with Subdweller Machine Gun Performance ------------- Evolutions (0) 0 Regions Visited (2) 400 Robots Destroyed (19) 95 Value Destroyed (454) 454 Prototype IDs (2) 40 Alien Tech Used (0) 0 Bonus (0) 0 TOTAL SCORE: 989 Bonus ------- None Cogmind --------- Core Integrity 0/250 Matter 260/300 Energy 100/100 System Corruption 0% Temperature Cool (0) Movement Core (200) Ox3 Location -10/Subcaves Parts ------- > --- POWER (1) -------- (None) > --- PROPULSION (2) --- (None) > --- UTILITY (2) ------ Medium Storage Unit Visual Processing Unit > --- WEAPON (2) ------- Hammer > --- INVENTORY (10) --- Aluminum Leg Flight Unit Heat Sink Light Armor Plating Light Armor Plating Makeshift System Shield Light Assault Rifle Peak State ------------ > --- POWER ------------ Subdweller Power Source > --- PROPULSION ------- Aluminum Leg Aluminum Leg > --- UTILITY ---------- Medium Storage Unit Visual Processing Unit > --- WEAPON ----------- Subdweller Machine Gun Grenade Launcher > --- INVENTORY -------- Ion Engine Aluminum Leg Aluminum Leg Flight Unit Heat Sink Light Armor Plating Light Armor Plating Makeshift System Shield Small Laser Hammer [Rating: 11] Favorites ----------- Power Ion Engine Engine Ion Engine Propulsion Aluminum Leg Leg Aluminum Leg Utility Medium Storage Unit Device Seismic Detector Storage Medium Storage Unit Processor Visual Processing Unit Weapon Subdweller Machine Gun Energy Gun Medium Laser Ballistic Gun Subdweller Machine Gun Launcher Grenade Launcher Impact Weapon Hammer Build | -11 -10 -10 ------- Run | Yrd Mat Sub Slots Evolved . | . . . Power . | . . . Propulsion . | . . . Utility . | . . . Weapon . | . . . Parts Attached 17 | 7 4 6 Power 2 | 1 . 1 Engine 2 | 1 . 1 Core . | . . . Reactor . | . . . Propulsion 4 | 2 1 1 Treads . | . . . Leg 4 | 2 1 1 Wheel . | . . . Hover . | . . . Flight . | . . . Utility 4 | 2 2 . Device 1 | 1 . . Storage 2 | 1 1 . Processor 1 | . 1 . Hackware . | . . . Protection . | . . . Artifact . | . . . Weapon 7 | 2 1 4 Energy Gun 3 | 1 . 2 Energy Cannon . | . . . Ballistic Gun 2 | 1 . 1 Ballistic Cannon . | . . . Launcher 1 | . 1 . Special Weapon . | . . . Impact Weapon 1 | . . 1 Slashing Weapon . | . . . Piercing Weapon . | . . . Special Melee Weapon . | . . . Unidentified Prototypes . | . . . Parts Lost 9 | . 1 8 Power 1 | . . 1 Propulsion 3 | . . 3 Utility 1 | . 1 . Weapon 4 | . . 4 Highest Loss Streak 5 | . 1 5 To Critical Strikes . | . . . Average Backups 7 | . 4 9 Power . | . . . Propulsion 2 | . 1 2 Utility 3 | . 2 4 Weapon 1 | . . 2 Tool/Special . | . . . Unused Backups 8 | 1 . 7 Power . | . . . Propulsion 3 | 1 . 2 Utility 5 | . . 5 Weapon . | . . . Tool/Special . | . . . Average Slot Usage (%) 98 | . 98 98 Engine 13 | . 14 13 Leg 27 | . 28 27 Device 1 | . 7 . Storage 14 | . 14 14 Processor 11 | . 4 14 Energy Gun 8 | . 14 7 Ballistic Gun 10 | . 12 10 Launcher 7 | . 1 9 Peak Build Rating 11 | 7 9 11 Average Rating 9 | 4 7 10 On Entrance 5 | . 7 9 Avg Prop Armor Cover (%) . | . . . Naked Turns . | . . . Heaviest Build 23 | 14 20 23 Greatest Support 20 | 20 20 20 Greatest Overweight (x) 5 | . . 5 Average Overweight (x) . | . . . Largest Inventory Capacity 10 | 8 10 10 Average Capacity 9 | 7 9 10 Most Carried 10 | 5 10 10 Average Carried 7 | . 4 9 Final Capacity 10 | 8 10 10 Final Carried 10 | . 10 7 Class Distribution -------------------- 68% | Mutant 31% | Scavenger-Mutant Dominant Class ---------------- Mutant | -10/Materials Mutant | -10/Subcaves Resources | -11 -10 -10 ----------- Run | Yrd Mat Sub Matter Collected 485 | 231 115 139 Remotely . | . . . Salvage Created 502 | 17 322 163 Parts 31 | 3 13 15 Haulers Intercepted . | . . . Recyclers Shooed 1 | 1 . . Parts Field Recycled . | . . . Retrieved Matter . | . . . Parts Self-Destructed 2 | . . 2 Prevented . | . . . Parts Restored . | . . . Kills | -11 -10 -10 ------- Run | Yrd Mat Sub Combat Hostiles Destroyed 15 | . 7 8 Guns 11 | . 7 4 AOE 4 | . . 4 Classes Destroyed 7 | 1 4 2 Worker 1 | . 1 . Tunneler 1 | 1 . . Watcher 2 | . 2 . Swarmer 6 | . 3 3 Grunt 4 | . 4 . Sentry 1 | . . 1 Subdweller 4 | . . 4 Best Kill Streak 9 | 1 9 3 Combat Bots Only 7 | . 7 3 Max Kills in Single Turn 1 | 1 1 1 Gunslinging . | . . . Exploded 1 | . . 1 Melee . | . . . Uniques/NPCs Destroyed . | . . . Combat | -11 -10 -10 -------- Run | Yrd Mat Sub Hostile Shots Fired 89 | . 35 54 Missed 24 | . 7 17 Hits 65 | . 28 37 Projectile 65 | . 28 37 AOE 4 | . . 4 Critical Strikes 1 | . . 1 Damage Taken 1097 | . 314 783 Core 257 | . 61 196 Absorbed by Shields . | . . . Core Remaining (%) 100 | 100 . . Volleys Fired 67 | 7 34 26 Largest 2 | 2 2 2 Hottest 90 | 70 70 90 Shots Fired 123 | 14 68 41 Gun 112 | 14 68 30 Cannon . | . . . Launcher 11 | . . 11 Special . | . . . Kinetic 52 | 7 34 11 Thermal 60 | 7 34 19 Explosive 11 | . . 11 Electromagnetic . | . . . Robot Hit Streak 15 | 13 15 11 Robot Miss Streak 4 | . 4 2 Penetration Max . | . . . Secondary Targets 2 | . 2 . Max Gunslinging Chain 1 | . 1 . Shots Hit Robots 87 | 13 42 32 Core Hits 30 | 2 16 12 Critical Kills . | . . . Critical Parts Destroyed . | . . . Critical Strikes 3 | . 3 . Burn 3 | . 3 . Melee Attacks 5 | . . 5 Impact 5 | . . 5 Slashing . | . . . Piercing . | . . . Sneak Attacks . | . . . Combat Hostiles . | . . . Follow-up Attacks . | . . . Damage Inflicted 1355 | 148 486 721 Guns 972 | 148 486 338 Cannons . | . . . Explosions 321 | . . 321 Melee 62 | . . 62 Ramming . | . . . Kinetic 378 | 59 189 130 Thermal 594 | 89 297 208 Explosive 321 | . . 321 Electromagnetic . | . . . Impact 62 | . . 62 Slashing . | . . . Piercing . | . . . Highest Corruption . | . . . Average Corruption . | . . . Corruption Purged . | . . . Corruption Blocked . | . . . Overload Shots . | . . . Overflow Damage 4 | . . 4 Projectiles . | . . . Explosions 4 | . . 4 Melee . | . . . Knockbacks . | . . . Impact . | . . . Kinetic . | . . . Secondary . | . . . Self-Inflicted Damage . | . . . Shots . | . . . Rammed . | . . . Targets Rammed . | . . . Kicked . | . . . Crushed . | . . . Highest Temperature 355 | 70 355 . Average Temperature 118 | 34 134 . Received Heat Transfer 240 | . 153 87 Siege Activations . | . . . Martial Activations . | . . . Shielding Activations . | . . . Robots Disrupted . | . . . Combat Hostiles . | . . . Robots Corrupted . | . . . Combat Hostiles . | . . . Parts Fried . | . . . Impact Corruptions . | . . . Robots Melted . | . . . Combat Hostiles . | . . . Parts Melted 1 | . 1 . Heat Transferred 1755 | 259 1110 386 Parts Sabotaged . | . . . Parts Stolen . | . . . Parts Stripped . | . . . Power Chain Reactions . | . . . Alert | -11 -10 -10 ------- Run | Yrd Mat Sub Maximum Alert Level . | . . . Low Security (%) 100 | 100 100 . Level 1 . | . . . Level 2 . | . . . Level 3 . | . . . Level 4 . | . . . Level 5 . | . . . High Security . | . . . Max Security . | . . . Peak Influence 137 | 5 137 . Initial . | . . . Average 36 | . 41 . Influence Increases 289 | 5 194 90 Destroy 0b10 Robot/C 220 | . 140 80 Destroy 0b10 Robot/NC 20 | 5 15 . Destroy Leader 44 | . 34 10 Successful Hack 5 | . 5 . Influence Decreases 289 | 5 150 134 Entered New Map 22 | . . 22 Time Decay 257 | 5 140 112 Lost Part 10 | . 10 . Squads Dispatched 2 | . 2 . Investigation 1 | . 1 . Extermination . | . . . Reinforcement 1 | . 1 . Assault . | . . . Garrison . | . . . Intercept . | . . . Searches Triggered . | . . . Construction Impeded . | . . . Haulers Reinforced . | . . . Active Scanning Responses . | . . . Cargo Convoy Interrupts . | . . . Stealth | -11 -10 -10 --------- Run | Yrd Mat Sub Distress Signals 1 | . 1 . Communications Jammed . | . . . Distress Signals . | . . . Times Spotted 22 | . 11 11 Peak Tracking Total 5 | . 5 3 Tactical Retreats . | . . . Traps | -11 -10 -10 ------- Run | Yrd Mat Sub Traps Triggered . | . . . Indirectly . | . . . Trap Hack Attempts . | . . . Triggered . | . . . Disarmed . | . . . Reprogrammed . | . . . Reused . | . . . Traps Extracted . | . . . Installed . | . . . Triggered . | . . . Machines | -11 -10 -10 ---------- Run | Yrd Mat Sub Machines Disabled . | . . . Max in Single Turn . | . . . Machines Repaired . | . . . Machines Dismantled . | . . . Machines Sabotaged . | . . . Overloaded Fab Kills . | . . . Hacking | -11 -10 -10 --------- Run | Yrd Mat Sub Machines Accessed 2 | . 2 . Terminals 1 | . 1 . Fabricators . | . . . Repair Stations 1 | . 1 . Recycling Units . | . . . Scanalyzers . | . . . Garrison Access . | . . . Total Hacks 4 | . 4 . Successful 3 | . 3 . Failed 1 | . 1 . Catastrophic . | . . . Database Lockouts . | . . . Manual 1 | . 1 . Terminals 3 | . 3 . Fabricators . | . . . Repair Stations 1 | . 1 . Recycling Units . | . . . Scanalyzers . | . . . Garrison Access . | . . . Terminal Hacks 2 | . 2 . Prototype ID Bank 1 | . 1 . Alert Level 1 | . 1 . Fabricator Hacks . | . . . Repair Station Hacks . | . . . Recycling Unit Hacks . | . . . Scanalyzer . | . . . Garrison Access Hacks . | . . . Unauthorized Hacks 1 | . 1 . Terminals 1 | . 1 . Botnet 1 | . 1 . Fabricators . | . . . Repair Stations . | . . . Recycling Units . | . . . Scanalyzers . | . . . Garrison Access . | . . . Data Cores Recovered . | . . . Used . | . . . Hacking Detections 2 | . 2 . Full Trace Events . | . . . Feedback Events . | . . . Feedback Blocked . | . . . Robot Schematics Acquired . | . . . Robots Built . | . . . Authchips . | . . . Time . | . . . Total Robot Build Rating . | . . . Part Schematics Acquired . | . . . Parts Built . | . . . Authchips . | . . . Time . | . . . Total Part Build Rating . | . . . Part Studies Acquired . | . . . Parts Repaired . | . . . Time . | . . . Parts Recycled . | . . . Recycled Matter . | . . . Retrieved Matter . | . . . Retrieved Components . | . . . Parts Scanalyzed . | . . . Part Schematics Acquired . | . . . Parts Damaged . | . . . Bothacking | -11 -10 -10 ------------ Run | Yrd Mat Sub Used RIF Installer . | . . . Robots Hacked . | . . . Non-combat . | . . . Combat . | . . . Robot Hacks Applied . | . . . Relay Couplers Released . | . . . Fabnet Peak Effective % . | . . . Robots Rewired . | . . . Allies Hacked . | . . . Hacks Repelled . | . . . Allies | -11 -10 -10 -------- Run | Yrd Mat Sub Total Allies . | . . . Largest Group . | . . . Highest-Rated Group . | . . . Highest-Rated Ally . | . . . Total Orders . | . . . Ally Attacks . | . . . Total Damage . | . . . Kills . | . . . Allies Corrupted . | . . . Allies Melted . | . . . Intel | -11 -10 -10 ------- Run | Yrd Mat Sub Active Infowar (turns) 2503 | 13 527 1963 Optics 2147 | . 184 1963 Seismic 356 | 13 343 . Robot Analysis Total . | . . . Derelict Logs Recovered 1 | . . 1 Drone Launches . | . . . Drone Recoveries . | . . . Exploration | -11 -10 -10 ------------- Run | Yrd Mat Sub Turns Passed 2653 | 85 605 1963 Spaces Moved 1547 | 54 392 1101 Core 21 | 20 . 1 Treads . | . . . Legs 1526 | 34 392 1100 Wheels . | . . . Hover . | . . . Flight . | . . . Fastest Speed 50 | 50 120 120 Average Speed 152 | 94 120 166 Slowest Speed 300 | 120 120 300 Overloaded Moves . | . . . Propulsion Burnouts . | . . . Robots Hopped . | . . . Potential Cave-ins . | . . . Cave-ins Triggered . | . . . Exploration Rate (%) 38 | 3 64 49 Regions Visited 2 Branch Regions 1 Pre-discovered Areas . | . . . Known Exits Taken . | . . . Unknown Exits Taken 2 | 1 1 . Scrap Searched . | . . . Spaces Dug 6 | . . 6 Terrain Destroyed 47 | . . 47 Melee . | . . . Projectile . | . . . AOE 47 | . . 47 Terrain Rammed . | . . . Walls Destroyed . | . . . Machines Disabled . | . . . Actions | -11 -10 -10 --------- Run | Yrd Mat Sub Total 1719 | 75 465 1179 Wait 50 | . 21 29 Move 1545 | 53 391 1101 Hop . | . . . Pick Up 25 | 7 13 5 Fast Attach 1 | 1 . . Attach 12 | 6 1 5 Detach . | . . . Swap 7 | . 3 4 Drop 7 | 1 2 4 Fire 67 | 7 34 26 Melee 5 | . . 5 Ram . | . . . Kick . | . . . Crush . | . . . Escape Stasis . | . . . Rewire . | . . . Trap . | . . . Miscellaneous . | . . . Route ------- -11/Scrapyard -10/Materials (discovered 4 exits: [*Mat x3] / [*Sub]) -10/Subcaves (discovered 2 exits: [*Mat] / Rec) History --------- Turn | Location | Event 2 | -11/Scrapyard | Met Revision 17 6 | -11/Scrapyard | Discovered new exit (range 16) 86 | -11/Scrapyard | Entered Materials 209 | -10/Materials | Discovered new exit (range 4) 300 | -10/Materials | Build established: Mutant 339 | -10/Materials | Discovered new exit (range 16) 402 | -10/Materials | Discovered new exit (range 10) 483 | -10/Materials | Destroyed 7 combat bots 586 | -10/Materials | Derelicts attacked the area 682 | -10/Materials | Discovered new exit (range 10) 691 | -10/Materials | Entered Subcaves 723 | -10/Subcaves | Discovered new exit (range 16) 830 | -10/Subcaves | Shifting Twisted Machinery released Mak. System Shield 1433 | -10/Subcaves | Build established: Scavenger-Mutant 1739 | -10/Subcaves | Build established: Mutant 1785 | -10/Subcaves | Shifting Twisted Machinery released Piercing Trap 1873 | -10/Subcaves | Identified exit to Recycling 2061 | -10/Subcaves | Core integrity fell below 50% 2408 | -10/Subcaves | Build established: Scavenger-Mutant 2627 | -10/Subcaves | Ambushed by Subdweller buried in earth 2639 | -10/Subcaves | Core integrity fell below 20% 2654 | -10/Subcaves | Destroyed by AR-ODT(R) with Subdweller Machine Gun Last Messages --------------- 02100_ Acquired Sub. Laser. 02101_ Subatomizers dissect the Sub. Power Source. 02149_ Subatomizers dissect the Disposable Heat Sink. 02458_ 4P-1FJ(u) builds Twisted Machinery. 02623_ Sub. Machine Gun destroyed. 02627_ 3C-ZME(R) destroyed. [Achievement: Do Not Disturb] 02628_ AR-ODT(R): "ARGHSUB!" 02629_ Aluminum Leg destroyed. 02631_ Subatomizers dissect the Sub. Laser. 02636_ Sub. Laser destroyed. 02641_ A6-OX2(R) affixes Scrap Shield Fragment to Scrap Shield. 02644_ Subatomizers dissect the Sub. Optics. 02647_ A6-OX2(R) affixes Scrap Shield Fragment to Scrap Shield. 02648_ Ion Engine destroyed. 02654_ Subatomizers dissect the Sub. Optics. Map ----- +----------------------------------------------------+ | ?????????????????????????????????????????????????? | | ?????????????????????????????????????????????????? | | ?????????????????????????????????????????????????? | | ?????????????????????????????????????????????????? | | ?????????????????????????????????????????????????? | | ?????????????????????????????????????????????????? | | ?????????????????????????????????????????????????? | | ??????????????????????? #??????????????????????? | | ??????????????????????? ??????????????????????? | | ??????????????????????? ??? ??????????????????? | | ?????????????????????## ??? ??????????????????? | | ???????????????????### #?? ???????????????????? | | ??????????????????## ##? ???????????????????? | | ??????????????????# ## ???????????????????? | | ??????????????????# = ????????????????????? | | ??????????????????? % ????????????????????? | | ???????????????????#![ ?????????????????????? | | ??????????????????## ?????????????????????? | | ?????????????????## #?????????????????????? | | ?????????????????# R ###???????????????????? | | ?????????????????# #???????????????????? | | ?????????????????# #???????????????????? | | ?????????????????# #???????????????????? | | ???????????????????# #???????????????????? | | ?????????????????### #???????????????????? | | ?????####????????# @R #???????????????????? | | ????## #????????## #??????????????????? | | ?#### #?????????# ##??????????????????? | | ## ## #????????##; #????>??????????????? | | ##?????### ; ; ###???????????????????? | | ###??## ### ;;?????????????????????? | | ##?# #### ##?????????????????????? | | #?# # # #??????????????????????? | | ### #?# #??????########???###??? | | ###?# #?# ## #?????## #???# #??? | | #???# ####?# ######????## ##### #??? | | #??## #?#### ##??#### & ! ## #??? | | #?## ### #??# ## #??? | | ### ### ##?# ### #??? | | ## ## ### ### ##??? | | #### ## ## #### & #???? | | ### ##### ####### ####### !%[ #???? | | #??## #?????# ##?##!& #???? | | #??## ##?????# "#?# ##???? | | ###?## #?####?# ## #?###" #???? | | #####??## ### #### ##### ##???#"""" #??? | | ???????# ### ##?# ####?##"""""#?? | | ???????# ### #??#"""" ""? | | ###???## ### #??#""" # | | #?### ### #?#""""" ## | +----------------------------------------------------+ Best States ------------- Heat Dissipation 25 Energy Generation 15 Energy Capacity 250 Matter Stores 300 Matter Capacity 300 Sight Range 18 Terrain Scan Density 10 Evasion (%) 55 Item Schematics ----------------- None Robot Schematics ------------------ None Fabricated ------------ Nothing Repaired ---------- Nothing Studied --------- None Alien Tech Used ----------------- None Achievements -------------- Do Not Disturb I Have A Map? Spot Them First You Again Challenges ------------ None Game ------ Seed ArmoredMyomerDriver Manual? 0 Play Time 00:19:11 Cumulative 33.2 hours Start 2026.03.14 @ 07:46:39 End 2026.03.14 @ 08:34:59 Sessions 1 Manual Loads 0 Difficulty Rogue Special Mode None Game No. 73 Rogue 73 Adventurer 0 Explorer 0 Win Type - Total 0 Types 0/0/0/0/0/0/0/0/0/0 Lore% 20 Gallery% 29 Achievement% 18 Wizard Run 0 Options --------- Layout 2 ASCII 0 Keyboard 0 Movement Mouse Keybinds 0 Fullscreen 1 Font 24/Smallcaps Map View 50x49 Zoom Use 0% Tactical HUD 1 Map Filters NONE Filters NONE Steam 1 RUN: 18ad157a-3887-4dcc-a2bc-f9770aee168e